bitfinex/quotes_ETHUSD_20251226
["timestamp","ask_amount","ask_price","bid_price","bid_amount"]
[1766734409566,0.914,2978.4,2977.8,0.923]
[1766734410256,0.914,2978.2,2977.6,0.001]
[1766734410940,0.914,2978.6,2977.7,0.923]
[1766734411269,0.914,2978.4,2977.6,0.001]
[1766734411475,0.914,2978.4,2977.6,0.924]
[1766734411645,0.914,2978.2,2977.6,0.924]
[1766734411849,0.914,2978.2,2977.7,0.95658296]
[1766734412072,0.914,2978.4,2977.7,0.95658296]
[1766734412565,4.27161862,2978.4,2977.7,0.95658296]
[1766734413078,0.914,2978.3,2977.7,0.95658296]
[1766734413866,5.4284635,2978.4,2977.6,0.924]
[1766734414071,0.914,2978.3,2977.7,0.923]
[1766734414273,0.914,2978.5,2977.8,0.95658183]
[1766734414568,4.12168554,2979.1,2977.8,0.95658183]
[1766734414569,3.35696793,2978.9,2977.9,0.923]
[1766734414766,8.97506637,2979.1,2977.8,7.33117233]
[1766734414767,4.23786258,2979.0,2978.1,0.923]
[1766734414971,5.15186258,2979.0,2978.3,0.923]
[1766734415274,0.914,2978.9,2978.3,0.923]
[1766734415452,2.15900308,2978.9,2978.3,0.923]
[1766734416670,0.002,2978.6,2978.3,0.923]
[1766734417140,0.002,2978.6,2978.3,0.0335762]
[1766734417341,0.002,2978.6,2978.0,0.923]
[1766734417570,0.002,2978.6,2978.1,0.923]
[1766734417870,0.916,2978.6,2978.1,0.923]
[1766734418368,0.916,2978.6,2977.8,0.923]
[1766734418564,0.914,2978.5,2977.8,1.1035]
[1766734422776,4.27140868,2978.5,2977.8,1.1035]
[1766734422953,0.914,2978.5,2977.8,1.1035]
[1766734423679,0.002,2978.6,2977.8,1.1035]
[1766734423881,0.002,2979.8,2977.8,6.89682]
[1766734424082,0.97,2979.4,2978.1,12.074553]
[1766734424382,0.97,2979.2,2978.2,0.881]
[1766734424996,0.97,2979.0,2978.1,2.861139]
[1766734425291,0.002,2978.6,2978.2,0.62190447]
[1766734425653,3.93942012,2979.1,2978.2,0.62190447]
[1766734425654,0.97,2978.9,2978.2,0.62190447]
[1766734426351,0.97,2978.8,2978.2,0.62190447]
[1766734426557,0.97,2978.6,2977.8,0.1815]
[1766734426887,0.97,2978.6,2977.8,4.42066866]
[1766734427091,0.97,2978.6,2977.9,0.03358071]
[1766734427291,0.97,2978.6,2978.0,0.44542494]
[1766734427688,0.97,2978.6,2978.1,0.03357845]
[1766734429259,0.97,2978.6,2978.0,0.44542494]
[1766734429803,0.97,2978.6,2977.9,3.35802915]
[1766734430177,0.97,2978.6,2977.8,1.0625]
[1766734430604,0.97,2978.6,2977.8,0.1815]
[1766734430897,0.97,2978.6,2977.9,3.39156557]
[1766734431097,0.97,2978.6,2977.9,0.03358071]
[1766734431296,0.97,2978.6,2977.8,1.0625]
[1766734431494,0.97,2978.6,2977.9,0.44207518]
[1766734431877,4.90942012,2978.5,2977.9,0.44207518]
[1766734432077,4.90942012,2978.5,2977.8,0.882]
[1766734432690,0.97,2978.4,2977.8,0.001]
[1766734433813,0.97,2978.7,2977.8,0.001]
[1766734434011,0.97,2978.7,2977.9,0.75985827]
[1766734434390,0.97,2978.7,2977.9,0.76085827]
[1766734434594,0.002,2978.6,2977.9,0.76085827]
[1766734434995,0.972,2978.6,2977.9,0.76085827]
[1766734435197,8.2687151,2978.6,2977.9,1.64185827]
[1766734435397,0.97,2978.5,2977.9,0.001]
[1766734436417,0.97,2978.5,2977.9,0.03458071]
[1766734436725,0.002,2978.6,2977.9,0.03458071]
[1766734436931,0.972,2978.6,2977.9,0.03458071]
[1766734437133,0.972,2978.6,2977.9,0.001]
[1766734437300,0.972,2978.6,2978.0,0.42411452]
[1766734437502,0.972,2978.6,2978.1,0.03357845]
[1766734441038,0.972,2978.6,2978.0,0.42411452]
[1766734441248,0.972,2978.6,2977.9,0.001]
[1766734442147,0.972,2978.6,2977.9,0.03458071]
[1766734442326,0.972,2978.6,2977.9,0.001]
[1766734443188,4.32695877,2978.9,2977.9,0.03458071]
[1766734443350,3.35687957,2979.0,2978.0,0.4274733]
[1766734443664,0.97,2979.1,2978.0,7.14336546]
[1766734443850,0.97,2979.1,2978.1,0.03357845]
[1766734444051,0.97,2979.1,2978.2,0.71769439]
[1766734444363,4.32671942,2979.1,2978.3,0.0335762]
[1766734444958,3.35809692,2979.7,2978.7,3.93942012]
[1766734445145,8.26751704,2979.7,2978.8,0.03357056]
[1766734445454,0.97,2979.6,2978.4,0.881]
[1766734445638,0.97,2979.5,2978.6,3.35728194]
[1766734445833,0.97,2979.5,2978.5,3.8393976]
[1766734446037,4.90942012,2979.5,2978.5,3.8393976]
[1766734446260,3.93942012,2979.3,2978.5,0.48204201]
[1766734446458,3.93942012,2979.3,2978.6,0.47205268]
[1766734447587,0.97,2979.4,2978.6,0.47205268]
[1766734447791,0.97,2979.4,2978.4,4.23848005]
[1766734447998,0.97,2979.4,2978.4,0.881]
[1766734448194,0.97,2979.4,2978.5,3.35736248]
[1766734448696,0.97,2979.4,2978.6,3.3572796]
[1766734448899,0.97,2979.4,2978.5,3.35734464]
[1766734449058,0.97,2979.4,2978.6,0.42383446]
[1766734449263,0.97,2979.4,2978.6,3.78111622]
[1766734451112,0.002,2979.3,2978.7,0.881]
[1766734452880,0.002,2979.3,2978.6,0.42383446]
[1766734453081,0.002,2979.3,2978.7,0.881]
[1766734454319,0.002,2979.3,2978.8,0.46621134]
[1766734454518,0.002,2979.3,2978.7,0.881]
[1766734457314,0.002,2979.3,2978.8,0.03357056]
[1766734459205,0.002,2979.3,2978.7,0.881]
[1766734462494,0.002,2979.3,2978.7,4.23815098]
[1766734462696,0.002,2979.3,2978.8,0.03357056]
[1766734462898,4.34036291,2979.6,2978.9,0.42717215]
[1766734463201,4.34036291,2979.6,2978.7,4.23815098]
[1766734463403,4.34036291,2979.6,2978.8,0.03357056]
[1766734466591,0.9842,2979.5,2978.7,0.881]
[1766734467724,0.9842,2979.4,2978.7,0.881]
[1766734470518,0.9842,2979.3,2978.5,0.001]
[1766734470708,0.9842,2979.2,2978.6,0.881]
[1766734472506,0.9842,2979.2,2978.5,0.001]
[1766734472507,0.9842,2979.1,2978.5,0.001]
[1766734473196,0.9842,2978.9,2978.0,3.35795465]
[1766734473503,0.9842,2978.9,2978.1,0.33589547]
[1766734473700,0.9842,2978.9,2978.0,0.881]
[1766734474028,0.9842,2978.9,2977.9,0.882]
[1766734474195,0.9842,2978.9,2977.9,0.001]
[1766734474401,0.9842,2978.6,2977.9,0.882]
[1766734474619,1.4763035,2978.5,2977.9,0.882]
[1766734474806,0.9842,2978.5,2977.9,0.001]
[1766734475008,0.9842,2978.4,2977.9,0.001]
[1766734476632,0.9842,2978.4,2978.1,0.001]
[1766734477135,0.9842,2978.3,2977.9,0.001]
[1766734478247,3.93683495,2978.1,2977.6,0.001]
[1766734478405,0.9842,2978.0,2977.4,0.001]
[1766734480038,3.35787719,2978.1,2977.4,0.001]
[1766734480655,4.34207719,2978.1,2977.4,0.001]
[1766734482020,0.9842,2978.1,2977.4,0.001]
[1766734482832,4.34207578,2978.1,2977.4,0.001]
[1766734483626,0.9853,2978.0,2977.4,0.001]
[1766734484670,0.9853,2978.0,2977.4,0.882]
[1766734486977,0.43431758,2978.0,2977.4,0.001]
[1766734487179,0.9067,2977.9,2977.4,0.001]
[1766734488044,7.62229485,2978.2,2977.4,0.001]
[1766734488255,0.9067,2978.1,2977.4,0.001]
[1766734489844,4.26457887,2978.1,2977.4,0.001]
[1766734491053,0.9067,2978.0,2977.4,0.001]
[1766734492546,0.9067,2978.3,2977.4,0.001]
[1766734493556,0.9067,2978.2,2977.4,0.001]
[1766734495477,0.9067,2978.2,2977.4,0.882]
[1766734495683,0.9067,2978.2,2977.4,4.6646978]
[1766734496878,0.9087,2978.4,2977.4,8.02333285]
[1766734497082,0.9087,2978.4,2977.5,0.881]
[1766734497878,0.9087,2978.4,2977.6,3.35840945]
[1766734500581,0.9087,2978.4,2977.5,4.23950303]
[1766734500753,0.9067,2978.3,2977.6,1.34745722]
[1766734500952,0.9067,2978.3,2977.6,0.881]
[1766734501358,0.002,2978.4,2977.6,0.881]
[1766734501557,0.002,2978.4,2977.7,0.03358296]
[1766734501779,0.9067,2979.1,2977.9,3.93683495]
[1766734501980,0.9067,2979.1,2978.0,1.09889985]
[1766734502147,0.9067,2979.1,2978.1,0.881]
[1766734502352,0.9067,2979.1,2978.2,12.365116]
[1766734502573,0.002,2979.6,2978.2,12.365116]
[1766734502771,0.9067,2979.4,2978.3,1.3581878]
[1766734502982,0.9067,2979.4,2978.3,0.0335762]
[1766734503187,0.9087,2979.6,2978.3,0.0335762]
[1766734503350,4.26488217,2979.6,2978.3,0.0335762]
[1766734503550,3.35630631,2979.5,2978.3,0.0335762]
[1766734503746,3.35630631,2979.5,2978.4,3.35750738]
[1766734503953,6.71263755,2979.5,2978.3,3.35758683]
[1766734504150,0.9067,2979.4,2978.3,3.35758683]
[1766734504763,0.9067,2979.4,2978.4,0.881]
[1766734505080,0.9067,2979.4,2978.5,0.42385868]
[1766734505781,0.9067,2979.4,2978.6,0.03357281]
[1766734506187,4.26308251,2979.4,2978.6,0.03357281]
[1766734506975,4.26308251,2979.4,2978.7,0.881]
[1766734508190,0.9087,2979.3,2978.7,0.881]
[1766734508655,0.002,2979.3,2978.7,0.881]
[1766734509088,0.002,2979.3,2978.3,3.3575763]
[1766734509283,0.002,2979.3,2978.4,1.21675763]
[1766734509456,0.002,2979.3,2978.4,4.57425514]
[1766734509670,0.002,2979.3,2978.4,0.33575763]
[1766734509890,0.002,2979.3,2978.5,0.881]
[1766734513798,0.002,2979.3,2978.4,3.69324131]
[1766734513982,0.002,2979.3,2978.6,0.881]
[1766734514593,0.9232,2979.3,2978.6,0.881]
[1766734514767,0.9232,2979.3,2978.4,0.33575763]
[1766734514979,0.9232,2979.3,2978.4,0.881]
[1766734515599,0.9232,2979.3,2977.8,3.35816603]
[1766734515784,0.9232,2979.3,2978.2,3.375613]
[1766734516100,0.9212,2979.2,2978.2,4.511543]
[1766734516410,0.9212,2979.2,2978.3,0.881]
[1766734516576,4.27791847,2979.1,2978.3,0.881]
[1766734517306,0.9212,2979.1,2978.3,0.881]
[1766734519489,0.9212,2979.1,2978.4,0.03357507]
[1766734520905,4.2779381,2979.1,2978.4,0.03357507]
[1766734521912,0.9212,2979.0,2978.3,0.001]
[1766734522213,1.39760375,2979.0,2978.4,0.881]
[1766734523792,0.9212,2979.0,2978.4,0.881]
[1766734524193,4.27804392,2979.0,2978.4,0.881]
[1766734524581,0.9212,2979.0,2978.4,0.881]
[1766734524894,4.27803571,2979.0,2978.4,0.881]
[1766734525198,4.27970548,2979.3,2978.4,4.23850006]
[1766734525506,0.9212,2979.2,2978.5,0.42395001]
[1766734525683,0.9212,2979.2,2978.4,0.881]
[1766734526385,0.9212,2979.1,2978.5,0.881]
[1766734527220,0.9212,2979.1,2978.6,0.03357281]
[1766734530595,4.27793693,2979.1,2978.4,0.882]
[1766734530795,0.9212,2979.1,2978.4,0.882]
[1766734530995,0.9212,2979.1,2978.4,1.30606179]
[1766734532025,0.9212,2979.1,2978.4,0.882]
[1766734532326,4.27793474,2979.1,2978.4,0.882]
[1766734532506,0.9212,2979.1,2978.4,0.882]
[1766734533890,0.9212,2979.0,2978.4,0.882]
[1766734534091,0.9212,2979.0,2978.4,0.001]
[1766734534292,0.9212,2978.6,2978.0,0.881]
[1766734535803,0.9212,2978.6,2978.4,0.001]
[1766734537104,0.9212,2978.6,2978.0,0.881]
[1766734538592,0.9212,2978.6,2978.1,0.03357845]
[1766734539993,0.9212,2978.9,2978.1,3.3914176]
[1766734540192,0.002,2979.1,2978.2,4.36503601]
[1766734540530,0.002,2979.1,2978.3,0.0335762]
[1766734540738,8.21772653,2979.1,2978.3,0.0335762]
[1766734540944,0.9212,2979.0,2978.3,0.881]
[1766734541725,0.9212,2979.0,2978.4,0.03357507]
[1766734543348,0.9232,2979.0,2978.4,0.03357507]
[1766734543710,0.9232,2979.0,2978.3,0.0345762]
[1766734544906,0.9989,2978.5,2977.8,10.255337]
[1766734545112,0.9989,2978.5,2977.7,0.881]
[1766734545408,3.93779425,2978.4,2977.7,0.881]
[1766734545648,0.9989,2978.3,2977.7,4.23924302]
[1766734545804,0.9989,2978.3,2977.8,0.75976263]
[1766734547220,0.9989,2978.3,2977.7,3.35824023]
[1766734547432,0.9989,2978.3,2977.7,3.35825535]
[1766734547629,0.9989,2978.3,2977.6,4.23936676]
[1766734547828,0.9989,2978.1,2977.4,0.001]
[1766734548149,0.9989,2978.1,2977.4,0.882]
[1766734548436,0.9989,2978.1,2977.5,0.4722]
[1766734548740,0.9989,2977.9,2977.4,0.001]
[1766734551650,0.9989,2977.9,2977.5,0.001]
[1766734558614,0.9989,2977.8,2977.5,0.001]
[1766734559946,1.03247635,2977.7,2977.4,0.001]
[1766734560158,0.9989,2977.6,2977.4,0.001]
[1766734562033,0.9989,2977.6,2977.2,0.001]
[1766734562342,0.9989,2977.5,2977.2,0.001]
[1766734562542,0.9989,2977.3,2976.7,0.87993411]
[1766734562742,1.49592706,2977.3,2976.7,0.87993411]
[1766734562965,4.93669425,2977.0,2976.4,0.89438979]
[1766734563133,4.93669425,2977.0,2976.6,0.01338979]
[1766734563134,0.9989,2977.0,2976.6,0.01338979]
[1766734563656,0.9989,2977.0,2976.8,0.01338979]
[1766734563855,1.03247635,2977.2,2976.8,0.01338979]
[1766734564030,0.9989,2977.2,2976.8,0.01338979]
[1766734565123,0.03357635,2977.1,2976.8,0.01338979]
[1766734565327,1.03247635,2977.1,2976.6,0.01338979]
[1766734566956,0.9989,2977.0,2976.5,0.001]
[1766734567256,0.9989,2977.0,2976.6,0.01338979]
[1766734567462,1.03247635,2976.9,2976.5,0.001]
[1766734567883,1.03247635,2976.9,2976.1,0.01338979]
[1766734567884,3.93779425,2976.6,2976.1,0.01338979]
[1766734568029,0.03357635,2976.9,2976.4,0.01338979]
[1766734568377,0.9989,2976.8,2976.1,0.04699081]
[1766734568662,0.9989,2976.6,2976.3,0.01338979]
[1766734568829,0.9989,2976.6,2976.1,0.01338979]
[1766734569030,0.9989,2976.6,2975.9,0.89438979]
[1766734569031,1.03247635,2976.6,2976.2,0.01338979]
[1766734569330,0.9989,2976.6,2976.2,0.01338979]
[1766734569528,0.9989,2976.2,2975.5,0.21355753]
[1766734569764,4.69842007,2976.6,2975.0,0.01338979]
[1766734569765,3.93779425,2975.7,2975.2,0.01338979]
[1766734569971,4.93669425,2975.7,2975.2,0.01338979]
[1766734570262,4.93669425,2975.5,2975.0,0.01338979]
[1766734570452,4.93669425,2975.5,2974.8,0.01338979]
[1766734571257,4.9702706,2975.4,2974.8,0.01338979]
[1766734571472,0.9989,2975.3,2974.8,0.01338979]
[1766734571645,0.9989,2975.7,2975.0,0.01338979]
[1766734571832,0.18654036,2976.8,2975.4,0.01338979]
[1766734571833,0.9989,2976.6,2975.4,0.01338979]
[1766734572032,0.9989,2976.4,2975.5,0.03360779]
[1766734572233,0.9989,2976.2,2975.4,0.01338979]
[1766734572448,0.9989,2976.0,2975.4,0.01338979]
[1766734573275,0.9989,2976.0,2975.5,0.01338979]
[1766734573446,4.93669425,2975.7,2975.0,0.01338979]
[1766734573767,0.49366943,2975.6,2974.9,4.24238847]
[1766734573969,0.9989,2975.7,2975.0,0.01338979]
[1766734574869,0.9504,2976.0,2975.3,3.36098636]
[1766734575240,0.9504,2976.0,2975.4,0.01338979]
[1766734575441,0.9504,2976.0,2975.4,0.04699871]
[1766734576552,0.9504,2976.0,2975.4,0.01338979]
[1766734576757,0.9504,2975.9,2975.4,0.01338979]
[1766734577162,3.3603746,2975.9,2975.2,0.01338979]
[1766734577474,0.9504,2975.8,2975.2,0.89538979]
[1766734577768,0.9504,2975.8,2975.0,0.01338979]
[1766734577769,0.9504,2975.7,2975.0,0.01338979]
[1766734577969,0.9504,2975.7,2975.1,0.03361231]
[1766734580269,0.9504,2975.7,2975.2,0.01338979]
[1766734580475,0.9504,2976.6,2975.3,0.03361005]
[1766734580672,0.9504,2976.6,2975.4,0.01338979]
[1766734580848,0.9504,2976.4,2975.4,0.01338979]
[1766734581771,0.9504,2976.2,2975.4,0.01338979]
[1766734582145,0.9504,2976.2,2975.0,0.01438979]
[1766734582342,0.9504,2976.2,2975.0,0.001]
[1766734582786,0.9504,2976.1,2975.0,0.01438979]
[1766734582976,0.9504,2975.9,2975.2,0.01338979]
[1766734583472,0.9504,2975.9,2975.4,0.01338979]
[1766734584682,0.9504,2975.9,2975.2,0.04700097]
[1766734584885,0.9504,2975.9,2975.2,0.01338979]
[1766734585192,0.9504,2975.8,2975.2,0.01338979]
[1766734585687,0.9504,2975.8,2975.2,3.37450225]
[1766734585883,0.9504,2975.8,2975.2,0.01338979]
[1766734586291,0.9504,2975.7,2975.2,0.01338979]
[1766734586879,0.9504,2976.6,2975.4,0.01338979]
[1766734587078,0.9504,2976.6,2975.8,0.01338979]
[1766734587277,0.9504,2976.6,2975.6,0.89538979]
[1766734587477,0.9504,2976.6,2975.6,0.01338979]
[1766734587683,0.9504,2976.6,2975.7,0.03360553]
[1766734588077,0.9504,2976.4,2975.6,0.01338979]
[1766734588291,1.38140506,2976.4,2975.6,0.01338979]
[1766734589498,1.38140506,2976.4,2975.6,4.25598873]
[1766734590497,0.9504,2976.3,2975.6,4.25598873]
[1766734590686,0.9504,2976.3,2975.6,3.37398873]
[1766734590869,0.9504,2976.3,2975.6,4.25598873]
[1766734591370,0.9504,2976.7,2975.8,0.01338979]
[1766734591694,0.9504,2976.7,2976.1,0.01338979]
[1766734591894,0.9504,2976.7,2976.2,0.03359989]
[1766734592109,0.9504,2976.7,2976.3,0.03359876]
[1766734592264,0.9504,2976.7,2976.1,0.01338979]
[1766734592693,0.9504,2976.7,2976.2,0.03359989]
[1766734592889,0.9504,2976.7,2975.9,3.36030828]
[1766734593193,0.9504,2976.7,2975.3,3.36099338]
[1766734593381,0.9504,2976.7,2975.7,0.01338979]
[1766734593697,0.9504,2976.6,2975.8,3.36037961]
[1766734594067,0.9504,2976.6,2975.9,0.03360327]
[1766734594267,0.9504,2976.6,2975.9,3.39393057]
[1766734594574,0.9504,2976.6,2975.9,0.03360327]
[1766734594769,0.9504,2976.6,2975.9,0.04699306]
[1766734596399,0.9504,2976.5,2975.9,0.04699306]
[1766734597103,0.9504,2976.5,2975.8,0.882]
[1766734597303,0.9504,2976.4,2975.8,0.882]
[1766734598008,0.9504,2976.4,2975.2,0.01338979]
[1766734598178,0.9504,2976.4,2975.6,3.36063157]
[1766734598377,0.9524,2976.4,2975.6,3.36063157]
[1766734598578,0.9524,2976.4,2975.5,3.39434431]
[1766734599209,0.9524,2976.4,2975.6,3.36064989]
[1766734599913,0.9504,2976.3,2975.5,3.39436639]
[1766734601590,0.9504,2976.3,2975.5,3.3607586]
[1766734601786,0.9504,2976.1,2975.6,0.03360666]
[1766734602615,0.9504,2976.1,2975.6,0.04699645]
[1766734602810,0.9134,2976.4,2975.6,0.04699645]
[1766734602984,0.9134,2976.4,2975.6,0.01338979]
[1766734603485,0.9134,2976.4,2975.7,3.36055381]
[1766734603680,0.002,2976.4,2975.8,0.04699419]
[1766734604914,0.9346,2976.4,2975.8,0.01338979]
[1766734606105,4.29438414,2976.4,2975.8,0.01338979]
[1766734606306,0.9326,2976.3,2975.8,0.01338979]
[1766734606498,0.9326,2976.3,2975.6,0.01338979]
[1766734606698,0.9326,2976.2,2975.4,3.36083629]
[1766734606916,0.9326,2976.2,2975.4,3.37422608]
[1766734607420,0.9326,2976.2,2975.4,0.01338979]
[1766734608020,4.29258924,2976.2,2975.4,0.01338979]
[1766734608317,0.9326,2976.0,2975.1,3.841]
[1766734608491,0.9326,2976.0,2975.1,0.883]
[1766734608686,0.9326,2976.0,2975.1,0.001]
[1766734608889,0.9326,2976.0,2974.5,0.01338979]
[1766734609101,0.9326,2975.8,2974.6,0.01338979]
[1766734609690,0.9326,2975.8,2974.4,4.24401086]
[1766734610103,0.9326,2975.6,2974.5,3.36190412]
[1766734610509,0.9326,2975.6,2974.4,3.36199365]
[1766734610715,0.9326,2975.6,2974.5,0.03361909]
[1766734611112,0.9326,2975.6,2974.5,0.04700888]
[1766734611313,0.9326,2975.6,2974.5,0.01338979]
[1766734612113,0.9326,2975.6,2974.5,0.89538979]
[1766734612316,0.9326,2975.4,2974.5,3.39550443]
[1766734612999,0.9326,2975.4,2974.6,0.01338979]
[1766734613301,0.9326,2975.4,2974.2,0.001]
[1766734613510,0.9326,2975.0,2973.7,0.89538979]
[1766734613723,0.9326,2975.0,2974.3,0.01338979]
[1766734614597,0.9326,2975.0,2974.8,0.001]
[1766734615509,6.72276703,2975.0,2974.0,0.001]
[1766734615718,6.72276703,2975.0,2973.5,0.0336304]
[1766734615719,0.9326,2974.8,2973.5,0.0336304]
[1766734615922,0.9326,2974.8,2973.6,3.3628862]
[1766734616333,0.9326,2974.8,2973.5,0.882]
[1766734616532,0.9326,2974.6,2973.5,4.24501988]
[1766734616701,0.9326,2974.6,2973.6,0.76081641]
[1766734616898,0.882,2975.3,2973.8,11.613176]
[1766734616899,0.9326,2975.1,2973.8,11.613176]
[1766734617136,0.9326,2975.1,2973.6,0.7742062]
[1766734617137,0.9326,2975.1,2973.7,5.172046]
[1766734617404,0.9326,2975.1,2973.8,0.882]
[1766734617632,0.9326,2974.9,2973.6,0.882]
[1766734617812,0.882,2974.8,2973.4,3.36314564]
[1766734618014,1.11406,2974.7,2973.5,0.33631456]
[1766734618399,0.9326,2974.5,2973.5,0.33631456]
[1766734618810,0.9326,2974.5,2973.5,3.69934368]
[1766734619346,0.9326,2974.5,2973.6,0.03362927]
[1766734619510,0.9326,2974.5,2973.5,3.69934368]
[1766734619705,0.9326,2974.5,2973.6,0.36993437]
[1766734619937,0.9326,2974.5,2973.6,0.40356364]
[1766734620366,0.9326,2974.5,2973.6,0.36993437]
[1766734620774,0.9326,2974.5,2968.7,33.84]
[1766734620775,0.9326,2974.1,2972.4,0.001]
[1766734621269,0.9326,2974.1,2973.0,8.583236]
[1766734621470,0.9326,2974.1,2973.1,0.882]
[1766734621671,0.9326,2974.5,2973.2,0.03363379]
[1766734621877,0.9326,2974.4,2973.3,0.01338979]
[1766734622040,0.9326,2974.4,2973.5,0.001]
[1766734622445,0.9326,2974.2,2973.5,0.001]
[1766734622659,0.9326,2974.0,2973.5,0.001]
[1766734623604,1.10190069,2974.1,2973.5,0.001]
[1766734623798,4.29473562,2974.3,2973.5,0.001]
[1766734623949,0.9326,2974.2,2973.5,0.001]
[1766734624463,0.9326,2974.1,2973.5,0.001]
[1766734624851,0.9326,2973.9,2971.7,0.882]
[1766734625052,0.9326,2973.7,2971.8,0.03364963]
[1766734625258,0.9326,2973.7,2972.1,3.36461398]
[1766734625570,0.9326,2973.7,2972.1,3.36457306]
[1766734625764,0.9326,2973.7,2972.2,3.36450295]
[1766734626154,0.9326,2973.7,2971.8,0.01338979]
[1766734626356,0.9326,2973.7,2972.5,10.117178]
[1766734626564,3.36282439,2973.7,2972.5,3.36407082]
[1766734626795,0.9326,2973.6,2972.6,3.3640584]
[1766734627368,0.9326,2973.6,2972.5,3.36413956]
[1766734627570,0.9326,2973.6,2972.4,0.001]
[1766734628399,0.9326,2973.6,2972.4,0.03464284]
[1766734628561,0.9326,2973.4,2972.4,0.001]
[1766734628765,0.9326,2973.4,2971.1,11.20308104]
[1766734628766,0.9326,2973.2,2971.1,11.20308104]
[1766734629017,0.79951201,2973.3,2971.0,0.21596207]
[1766734629018,0.9326,2972.5,2971.0,0.21596207]
[1766734629172,0.9326,2972.3,2971.0,0.21396207]
[1766734629372,0.9326,2972.1,2971.3,0.001]
[1766734629694,0.9326,2971.9,2971.3,0.001]
[1766734630000,0.03364397,2972.0,2971.3,0.001]
[1766734630001,0.9326,2971.7,2971.3,0.001]
[1766734630201,0.9326,2971.5,2971.0,0.21396207]
[1766734630366,0.9326,2971.3,2971.0,0.21396207]
[1766734630564,0.9326,2972.0,2971.0,0.21396207]
[1766734630767,0.9326,2971.8,2971.0,0.21396207]
[1766734630986,0.96624397,2971.7,2971.1,0.03365756]
[1766734631203,0.9326,2972.1,2971.0,6.94568059]
[1766734631404,0.9326,2972.1,2971.2,14.445473]
[1766734631696,0.9326,2972.1,2971.1,0.69456806]
[1766734631905,0.9326,2972.1,2971.0,0.21396207]
[1766734632379,0.9326,2972.1,2971.0,3.57981883]
[1766734632581,0.9326,2972.1,2971.0,6.9456889]
[1766734633089,0.9326,2972.5,2971.0,10.31155897]
[1766734633276,0.9326,2972.5,2971.1,11.99327356]
[1766734633470,0.9326,2972.5,2971.2,3.11248325]
[1766734633701,0.9326,2972.5,2971.2,0.882]
[1766734634299,0.9326,2972.5,2971.0,0.21396207]
[1766734634677,0.9156,2972.3,2971.1,0.03365756]
[1766734634903,0.9156,2972.3,2971.0,0.21396207]
[1766734635109,0.9156,2972.1,2971.0,0.21396207]
[1766734635474,0.9156,2972.1,2971.0,1e-08]
[1766734635678,0.9156,2972.1,2970.1,0.01438979]
[1766734635679,0.9156,2972.0,2970.3,3.36658027]
[1766734635909,0.9156,2972.0,2970.4,0.883]
[1766734636081,0.9156,2971.8,2970.6,3.36624187]
[1766734636712,0.60684725,2971.9,2970.4,0.883]
[1766734636713,0.9156,2971.6,2970.4,0.883]
[1766734636889,0.9156,2971.6,2970.4,7.61609375]
[1766734637984,0.9156,2971.6,2970.5,0.01338979]
[1766734638196,0.9156,2971.6,2970.6,0.76294835]
[1766734638682,0.9156,2971.6,2970.7,8.228698]
[1766734638883,0.9156,2971.5,2970.6,11.609626]
[1766734639083,1.34366953,2971.5,2970.7,3.36618999]
[1766734639400,0.9156,2971.5,2970.7,3.36618999]
[1766734640234,0.84060372,2971.5,2970.7,6.73239997]
[1766734640392,0.9156,2972.6,2970.7,6.73239997]
[1766734640582,0.9156,2972.4,2970.9,6.73196674]
[1766734640778,0.9156,2972.4,2971.0,0.883]
[1766734641907,0.9156,2972.2,2971.1,3.36575679]
[1766734642112,0.9156,2972.2,2971.1,4.24875679]
[1766734642291,0.9156,2972.1,2971.2,0.42487568]
[1766734643479,0.9156,2972.1,2970.8,3.36602593]
[1766734643685,0.9156,2972.1,2970.9,3.36589134]
[1766734643883,0.9156,2971.9,2970.7,8.008252]
[1766734644116,0.9156,2971.8,2970.8,1.47418986]
[1766734644316,0.9156,2971.8,2970.6,6.7336466]
[1766734644317,0.9156,2971.8,2970.7,8.008252]
[1766734645100,0.9156,2971.8,2970.8,0.883]
[1766734645413,0.9156,2971.8,2970.6,6.7336466]
[1766734645617,0.9156,2971.8,2970.7,4.05808]
[1766734645809,0.9156,2971.8,2970.7,1.62554033]
[1766734646009,0.9156,2971.7,2970.8,3.36609667]
[1766734646923,0.9156,2971.7,2970.7,0.74254033]
[1766734647128,0.9156,2971.7,2970.7,3.3661561]
[1766734647307,0.9156,2971.7,2970.7,3.36617765]
[1766734648107,0.9156,2971.7,2970.6,0.001]
[1766734649408,0.9156,2971.6,2970.6,0.001]
[1766734650024,0.9156,2971.6,2970.7,0.883]
[1766734650228,0.9156,2971.6,2970.8,3.36609667]
[1766734650532,0.9156,2972.2,2970.9,4.68819483]
[1766734650825,0.9156,2972.1,2970.7,3.79122176]
[1766734651023,0.9156,2972.1,2970.7,3.3661781]
[1766734651596,0.9156,2972.1,2970.7,6.73238808]
[1766734652206,9.35871455,2972.3,2970.7,6.73238808]
[1766734652207,0.9156,2971.9,2970.7,6.73238808]
[1766734652536,0.9156,2971.9,2970.6,0.884]
[1766734652537,0.9156,2971.7,2970.8,0.76163881]
[1766734652728,0.9156,2971.7,2970.6,0.001]
[1766734652899,0.9156,2971.7,2970.6,0.884]
[1766734653702,0.9156,2971.7,2970.6,4.25031228]
[1766734654324,0.9156,2971.5,2970.6,0.884]
[1766734654527,0.9156,2971.3,2970.6,0.884]
[1766734654829,0.9156,2971.3,2970.6,0.001]
[1766734655233,0.9156,2971.3,2970.6,0.884]
[1766734655429,0.9156,2971.3,2970.6,0.001]
[1766734656328,0.9156,2971.2,2970.6,0.001]